fUSD/lending_fUSD_20240322
["ID","MTS","AMOUNT","RATE_DAILY","PERIOD"]
[320049407,1711115455905,-183.711982,0.00025945,7]
[320049409,1711115455916,-183.711982,0.00025945,7]
[320049411,1711115455925,-232.182676,0.00025945,7]
[320049413,1711115455936,-232.182676,0.00025945,7]
[320049415,1711115455945,-190.060345,0.00025945,7]
[320049417,1711115455955,-190.060345,0.00025945,7]
[320049419,1711115455965,-151.0,0.00025945,7]
[320049421,1711115455975,-189.540091,0.00025945,7]
[320049423,1711115455984,-189.540091,0.00025945,7]
[320049425,1711115455994,-175.997,0.00025945,7]
[320049426,1711115456003,-175.997,0.00025945,7]
[320049428,1711115456013,-151.0,0.00025945,7]
[320049431,1711115456023,-579.245287,0.00025945,7]
[320049433,1711115456036,-579.245287,0.00025945,7]
[320049435,1711115456045,-314.732103,0.00025945,7]
[320049437,1711115456055,-314.732103,0.00025945,7]
[320049439,1711115456066,-151.0,0.00025945,7]
[320049441,1711115456076,-3741.669878,0.00025945,7]
[320049443,1711115456086,-151.0,0.00025945,7]
[320049445,1711115456095,-170.550446,0.00025945,7]
[320049446,1711115456105,-151.0,0.00025945,7]
[320049449,1711115456116,-170.550446,0.00025945,7]
[320049451,1711115456126,-151.0,0.00025945,7]
[320049453,1711115456136,-151.0,0.00025945,7]
[320049455,1711115456145,-402.720022,0.00025945,7]
[320049457,1711115456154,-402.720022,0.00025945,7]
[320049459,1711115456163,-281.445774,0.00025945,7]
[320049460,1711115456172,-281.445774,0.00025945,7]
[320049462,1711115456181,-151.0,0.00025945,7]
[320049465,1711115456191,-569.200209,0.00025945,7]
[320049466,1711115456199,-569.200209,0.00025945,7]
[320049468,1711115456208,-152.281949,0.00025945,7]
[320049469,1711115456218,-152.281949,0.00025945,7]
[320049470,1711115456227,-1312.772811,0.00025945,7]
[320049471,1711115456235,-1312.772811,0.00025945,7]
[320049472,1711115456245,-151.0,0.00025945,7]
[320049473,1711115456253,-169.348144,0.00025945,7]
[320049474,1711115456262,-169.348144,0.00025945,7]
[320049475,1711115456272,-303.39444,0.00025945,7]
[320049476,1711115456283,-151.0,0.00025945,7]
[320049477,1711115456292,-303.39444,0.00025945,7]
[320049478,1711115456301,-1187.477578,0.00025945,7]
[320049480,1711115456310,-1187.477578,0.00025945,7]
[320049482,1711115456319,-151.0,0.00025945,7]
[320049484,1711115456328,-223.16253728,0.00025945,2]
[320049486,1711115456337,-373.63860962,0.00025945,2]
[320049489,1711115456346,-248.44551428,0.00025945,2]
[320049490,1711115456355,-160.14788317,0.00025945,2]
[320049492,1711115456365,-199.70232461,0.00025945,2]
[320049494,1711115456374,-775.19834796,0.00025945,2]
[320049496,1711115456384,-1060.34235889,0.00025945,2]
[320049499,1711115456394,-258.81574842,0.00025945,2]
[320049501,1711115456404,-1521.48067834,0.00025946,10]
[320049503,1711115456413,-2612.1288537,0.00025946,2]
[320049505,1711115456422,-6017.4223977,0.00025946,2]
[320049506,1711115456434,-123447.5004622,0.00025946,2]
[320049509,1711115456443,-217.4050215,0.00025947,2]
[320049510,1711115456454,-155.0,0.00025947,2]
[320049513,1711115456463,-455.0,0.00025972,2]
[320049514,1711115456472,-2197.7694324,0.00025979,2]
[320049516,1711115456481,-151.0,0.00025982,7]
[320049518,1711115456490,-157.32772,0.00025982,7]
[320049521,1711115456499,-158.300388,0.00025982,7]
[320049522,1711115456508,-158.300388,0.00025982,7]
[320049524,1711115456518,-151.0,0.00025982,7]
[320049526,1711115456527,-259.211584,0.00025982,7]
[320049529,1711115456541,-151.0,0.00025982,7]
[320049531,1711115456552,-151.0,0.00025982,7]
[320049533,1711115456561,-331.581339,0.00025982,7]
[320049535,1711115456571,-331.581339,0.00025982,7]
[320049537,1711115456584,-1783.410011,0.00025982,2]
[320049539,1711115456593,-1369.0505897,0.00025982,2]
[320049540,1711115456602,-151.0,0.00025982,7]
[320049543,1711115456612,-151.0,0.00025982,7]
[320049545,1711115456622,-549.335766,0.00025982,7]
[320049546,1711115456632,-549.335766,0.00025982,7]
[320049548,1711115456641,-151.0,0.00025982,7]
[320049550,1711115456652,-302.405322,0.00025982,7]
[320049552,1711115456661,-196.698024,0.00025982,7]
[320049555,1711115456670,-302.405322,0.00025982,7]
[320049556,1711115456680,-183.711982,0.00025982,7]
[320049559,1711115456690,-183.711982,0.00025982,7]
[320049561,1711115456699,-232.182676,0.00025982,7]
[320049563,1711115456709,-232.182676,0.00025982,7]
[320049565,1711115456718,-190.060345,0.00025982,7]
[320049567,1711115456728,-190.060345,0.00025982,7]
[320049569,1711115456737,-189.540091,0.00025982,7]
[320049571,1711115456745,-189.540091,0.00025982,7]
[320049573,1711115456755,-175.997,0.00025982,7]
[320049575,1711115456764,-175.997,0.00025982,7]
[320049577,1711115456774,-151.0,0.00025982,7]
[320049578,1711115456786,-579.245287,0.00025982,7]
[320049580,1711115456795,-579.245287,0.00025982,7]
[320049582,1711115456805,-314.732103,0.00025982,7]
[320049584,1711115456815,-314.732103,0.00025982,7]
[320049586,1711115456824,-151.0,0.00025982,7]
[320049588,1711115456834,-3741.669878,0.00025982,7]
[320049590,1711115456843,-193.381713,0.00025982,7]
[320049592,1711115456853,-170.550446,0.00025982,7]
[320049594,1711115456862,-151.0,0.00025982,7]
[320049596,1711115456872,-170.550446,0.00025982,7]
[320049598,1711115456882,-151.0,0.00025982,7]
[320049600,1711115456890,-169.72624,0.00025982,7]
[320049602,1711115456900,-402.720022,0.00025982,7]
[320049604,1711115456910,-402.720022,0.00025982,7]
[320049606,1711115456919,-281.445774,0.00025982,7]
[320049608,1711115456929,-281.445774,0.00025982,7]
[320049610,1711115456940,-151.0,0.00025982,7]
[320049612,1711115456950,-569.200209,0.00025982,7]
[320049614,1711115456960,-569.200209,0.00025982,7]
[320049616,1711115456970,-152.281949,0.00025982,7]
[320049618,1711115456981,-152.281949,0.00025982,7]
[320049620,1711115456991,-1312.772811,0.00025982,7]
[320049622,1711115457001,-1312.772811,0.00025982,7]
[320049624,1711115457012,-151.0,0.00025982,7]
[320049626,1711115457022,-169.348144,0.00025982,7]
[320049628,1711115457037,-169.348144,0.00025982,7]
[320049630,1711115457048,-303.39444,0.00025982,7]
[320049632,1711115457060,-303.39444,0.00025982,7]
[320049634,1711115457070,-1187.477578,0.00025982,7]
[320049636,1711115457085,-1187.477578,0.00025982,7]
[320049639,1711115457097,-150.89814334,0.00025987,2]
[320049641,1711115457108,-954.6911683,0.00025997,2]
[320049643,1711115457119,-150.0,0.00025999,2]
[320049645,1711115457131,-1000.0,0.00026,2]
[320049647,1711115457142,-500.0,0.00026,2]
[320049649,1711115457153,-500.0,0.00026,2]
[320049651,1711115457164,-127480.02949376,0.00026,2]
[320049653,1711115457181,-266.75203544,0.00026,2]
[320049658,1711115457217,-5707.73898056,0.00026,2]
[320049664,1711115457277,-1899.22923745,0.00026,2]
[320049667,1711115457302,-297669.22733221,0.00026,2]
[320049669,1711115457312,-20724.29624993,0.00026,2]
[320049672,1711115457334,-330.94491637,0.000218,2]
[320049674,1711115457343,-3021.05508363,0.00026,2]
[320049683,1711115457419,-330.94491637,0.000218,2]
[320049685,1711115457428,-151.0,0.00024384,7]
[320049687,1711115457438,-915.40177123,0.00026,2]
[320049689,1711115457450,-5713.90067812,0.00026,2]
[320049751,1711115458043,-65045.85239945,0.00026,2]
[320050626,1711115491745,310.12231742,0.00016809,2]
[320050627,1711115494788,173.42568555,0.00026042,120]
[320050628,1711115509673,252.19203523,0.00016809,2]
[320050637,1711115678546,468.32427088,0.000137,2]
[320050638,1711115678570,832.80754557,0.000137,2]
[320050639,1711115689860,-200.0,0.00017345,2]
[320050640,1711115689881,-520.60897951,0.00017419,2]
[320050641,1711115689903,-513.97,0.0001742,2]
[320050642,1711115689925,-300.0,0.00017509,2]
[320050643,1711115689950,-260.52601127,0.00017509,2]
[320050644,1711115689971,-205.4134644,0.0001751,2]
[320050645,1711115689997,-4174.77102397,0.0001751,2]
[320050646,1711115690019,-2124.0,0.00017514,2]
[320050647,1711115690040,-249.65614262,0.00017517,2]
[320050648,1711115690062,-250.0,0.00017575,2]
[320050649,1711115690085,-23801.05437823,0.00017595,2]
[320050650,1711115914103,347.08,0.00025554,120]
[320050658,1711116026319,44160.61449378,0.000234,120]
[320050659,1711116026341,140153.43194129,0.000234,120]
[320050661,1711116313422,-2205.05257841,0.00015491,2]
[320050662,1711116313458,-407.68,0.00015493,2]
[320050663,1711116313487,-475.35,0.00016531,2]
[320050664,1711116313517,-25894.12,0.0001658,2]
[320050665,1711116313546,-670.459,0.00016607,2]
[320050666,1711116313576,-162.71718963,0.00016607,2]
[320050667,1711116313605,-5000.0,0.00016707,2]
[320050668,1711116313634,-5000.0,0.00016707,2]
[320050669,1711116313663,-5000.0,0.00016707,2]
[320050670,1711116313695,-5000.0,0.00016707,2]
[320050671,1711116313723,-184.62123196,0.00016707,2]
[320050672,1711116325566,-4815.37876804,0.00016707,2]
[320050673,1711116325595,-250.0,0.00016713,2]
[320050674,1711116325631,-707.2,0.00016763,2]
[320050675,1711116325662,-1500.0,0.00016792,4]
[320050676,1711116334325,317.54246494,0.00016707,2]
[320050677,1711116340606,408.81,0.00015269,2]
[320050678,1711116343643,1030.41935323,0.00016707,2]
[320050679,1711116356319,375.33069701,0.00016707,2]
[320050680,1711116359395,610.85739391,0.00016707,2]
[320050716,1711116548132,-331.72167273,0.00016828,2]
[320050717,1711116548153,-1818.55,0.00016829,2]
[320050718,1711116548174,-150.0,0.00016829,2]
[320050719,1711116548196,-1000.0,0.00016835,2]
[320050720,1711116548218,-1000.0,0.00017,2]
[320050721,1711116548241,-2690.66532727,0.00017005,2]
[320050723,1711116558112,-67.49467273,0.00017005,2]
[320050724,1711116558137,-182.24,0.00017009,2]
[320050725,1711116558161,-347.08,0.00017036,2]
[320050726,1711116558181,-7416.6,0.00017061,2]
[320050727,1711116558202,-162.71718963,0.00017254,2]
[320050728,1711116558223,-499.99,0.00017491,2]
[320050729,1711116558243,-150.99,0.00017533,2]
[320050730,1711116558265,-408.81,0.00017533,2]
[320050731,1711116558284,-167.74,0.00017548,2]
[320050732,1711116558303,-852.61,0.00017548,2]
[320050733,1711116558322,-321.6642452,0.00017595,2]
[320050734,1711116558341,-20449.23102177,0.00017595,2]
[320050735,1711116558360,-9116.0998,0.00017595,2]
[320050736,1711116558383,-300.0,0.00017597,2]
[320050737,1711116558403,-224.99955575,0.00017677,2]
[320050738,1711116558422,-509.17409777,0.00017693,2]
[320050739,1711116558441,-409.61556301,0.00017693,2]
[320050740,1711116558460,-205.25446688,0.00017693,2]
[320050741,1711116558480,-4172.41330235,0.00017693,2]
[320050742,1711116558500,-206.45981932,0.00017693,2]
[320050743,1711116558519,-3505.6650676,0.00017693,2]
[320050744,1711116558538,-155.54990724,0.00017693,2]
[320050745,1711116558556,-155.0,0.00017693,2]
[320050746,1711116558575,-3621.72335727,0.00017694,2]
[320050747,1711116558595,-193.30287547,0.00017694,2]
[320050748,1711116558615,-156.95529,0.00017694,2]
[320050749,1711116558636,-3059.21992612,0.00017694,2]
[320050750,1711116558657,-123351.05984189,0.00017695,2]
[320050752,1711116567103,-121648.94015811,0.00017695,2]
[320050753,1711116567126,-29942.8436,0.00017695,2]
[320050754,1711116567148,-28518.05624189,0.00017695,2]
[320050756,1711116569663,-331.95445473,0.00017694,2]
[320050757,1711116569683,-71481.94375811,0.00017695,2]
[320050758,1711116569703,-2300.0,0.000177,6]
[320050759,1711116569722,-150.99,0.00017732,2]
[320050760,1711116569741,-12811.33335685,0.00017787,2]
[320050761,1711116569761,-4700.0,0.000178,6]
[320050762,1711116569780,-159.06,0.00017808,10]
[320050763,1711116569799,-182.24,0.00017895,2]
[320050764,1711116569818,-162.71718963,0.000179,2]
[320050765,1711116569837,-2274.64552442,0.000179,2]
[320050766,1711116569856,-183.17408248,0.000179,2]
[320050767,1711116569876,-7100.0,0.000179,6]
[320050768,1711116569897,-412.18884789,0.000179,2]
[320050769,1711116569916,-462.13362686,0.000179,2]
[320050770,1711116569935,-198.59407589,0.00017999,2]
[320050771,1711116569953,-155.0,0.00017999,2]
[320050772,1711116569973,-155.22218572,0.00017999,2]
[320050773,1711116569992,-300.0,0.00017999,2]
[320050774,1711116570012,-300.0,0.00017999,2]
[320050775,1711116570031,-300.0,0.00017999,2]
[320050776,1711116570050,-300.0,0.00017999,2]
[320050777,1711116570069,-300.0,0.00017999,2]
[320050778,1711116570089,-300.0,0.00017999,2]
[320050779,1711116570108,-300.0,0.00017999,2]
[320050780,1711116570129,-300.0,0.00017999,2]
[320050781,1711116570149,-300.0,0.00017999,2]
[320050782,1711116570170,-10478.50835315,0.00018,2]
[320050797,1711116631448,-948.0,0.000178,2]
[320050798,1711116631617,-52.0,0.000178,2]
[320050799,1711116631628,-1000.0,0.000178,2]
[320050800,1711116631637,-586.18708089,0.000179,2]
[320050801,1711116631647,-167.6272744,0.0001799,2]
[320050802,1711116631656,-25490.7596331,0.00018,2]
[320050803,1711116631671,-858.49621984,0.00018,2]
[320050804,1711116631683,-19783.88042092,0.00018,2]
[320050805,1711116631724,-31673.96996567,0.00018,2]
[320050806,1711116631756,-19669.95722834,0.00018,2]
[320050807,1711116631826,-5578.7714334,0.00018,2]
[320050808,1711116631890,-1040.50535985,0.00018,2]
[320050809,1711116631903,-801.75336,0.00018,2]
[320050810,1711116631960,-6300.1,0.00018,2]
[320050811,1711116631972,-44029.670356,0.00018,2]
[320050812,1711116631985,-3150.95,0.00018,2]
[320050813,1711116631998,-441.0,0.00018,2]
[320050889,1711116637485,-988.43314329,0.00018,2]
[320050893,1711116637511,-11197.19612447,0.00018,2]
[320050897,1711116637523,-2930.84939697,0.00018,2]
[320050904,1711116637554,-126000.0,0.00018,2]
[320050920,1711116637632,-437.07933409,0.00018,2]
[320050922,1711116637644,-1120.524,0.00018,2]
[320050924,1711116637692,-332.77,0.00018,2]
[320050925,1711116637704,-2458.11796431,0.00018,2]
[320050926,1711116637830,-865.17042959,0.00018,2]
[320050927,1711116637841,-2516.80505927,0.00018,2]
[320050929,1711116637893,-3787.6293436,0.00018,2]
[320050970,1711116638760,-252162.00000016,0.00018,2]
[320050971,1711116638773,-85324.42544269,0.00018,2]
[320050972,1711116638790,-2610.77978929,0.00018,2]
[320051007,1711116639582,-3155.55,0.00018,2]
[320051010,1711116639603,-677.4149997,0.00018,2]
[320051012,1711116639616,-1248.764324,0.00018,2]
[320051015,1711116639628,-2534.39686932,0.00018,2]
[320051017,1711116639639,-3233.9328885,0.00018,2]
[320051020,1711116639658,-41570.41789453,0.00018,2]
[320051022,1711116639669,-338.0226125,0.00018,2]
[320051028,1711116639717,-273.8085615,0.00018,2]
[320051029,1711116639728,-828.05876837,0.00018,2]
[320051030,1711116639740,-254.50000001,0.00018,2]
[320051034,1711116639781,-50652.68451802,0.00018,2]
[320051037,1711116639794,-340.07928744,0.00018,2]
[320051039,1711116639805,-802.34349713,0.00018,2]
[320051041,1711116639817,-372.58027979,0.00018,2]
[320051043,1711116639827,-6283.99999999,0.00018,2]
[320051090,1711116642586,-3162.075,0.00018,2]
[320051095,1711116642703,-18886.65,0.00018,2]
[320051096,1711116642729,-846.23899988,0.00018,2]
[320051097,1711116642741,-26227.99639394,0.00018,2]
[320051098,1711116642856,-654.48701067,0.00017999,5]
[320051099,1711116642866,-2688.48179514,0.00018,2]
[320051100,1711116642916,-6318.90811104,0.00018,2]
[320051101,1711116642982,-1250.82114822,0.00018,2]
[320051102,1711116642995,-2914.64251096,0.00018,2]
[320051103,1711116643045,-1399.63472467,0.00018,2]
[320051104,1711116643161,-11944.14703197,0.00018,2]
[320051105,1711116643231,-402.24235195,0.00018,2]
[320051351,1711116645578,-12657.645,0.00018,2]
[320051354,1711116645599,-29720.05987348,0.00018,2]
[320051357,1711116645616,-1688.43883231,0.00018,2]
[320051359,1711116645628,-12618.05,0.00018,2]
[320051364,1711116645659,-2898.54565147,0.00018,2]
[320051370,1711116645726,-335.63530001,0.00018,2]
[320051384,1711116645860,-126050.39999999,0.00018,2]
[320051387,1711116645876,-1134.20002,0.00018,2]
[320051389,1711116645891,-1259.06224,0.00018,2]
[320051412,1711116646122,-28244.62329104,0.00018,2]
[320051415,1711116646140,-63051.0,0.00018,2]
[320051418,1711116646163,-315.505,0.00018,2]
[320051443,1711116646479,-97817.66363025,0.00018,2]
[320051447,1711116646505,-339.70954246,0.00018,2]
[320051449,1711116646517,-5528.0424652,0.00018,2]
[320051456,1711116646572,-3040.74535389,0.00018,2]
[320051992,1711116819604,389.1,0.00016713,2]
[320051996,1711116957952,1030.41935323,0.00016713,2]
[320051997,1711116972025,425.95513434,0.00016713,2]
[320052004,1711117288544,369.64,0.00015762,2]
[320052009,1711117744161,351.15,0.00015098,2]
[320052011,1711117748197,-934.0,0.00017,2]
[320052012,1711117748227,-208.24,0.0001703,2]
[320052013,1711117748251,-1324.44,0.00017135,2]
[320052014,1711117748274,-130.4011,0.00017281,2]
[320052027,1711117831981,-465.76,0.00017095,2]
[320052028,1711117831991,-119.5989,0.00017281,2]
[320052029,1711117832001,-1069.02756507,0.00017361,2]
[320052030,1711117832013,-1380.896,0.00017361,2]
[320052031,1711117832025,-1563.6445877,0.00017361,2]
[320052032,1711117832035,-351.15,0.00017362,2]
[320052033,1711117832044,-2622.2,0.00017376,2]
[320052034,1711117832053,-800.0,0.00017403,2]
[320052035,1711117832063,-405.61202625,0.0001746,2]
[320052036,1711117832073,-500.0,0.00017595,2]
[320052037,1711117832082,-1000.0,0.00017595,2]
[320052038,1711117832092,-251.69,0.000177,2]
[320052039,1711117832101,-168.68,0.00017703,2]
[320052040,1711117832113,-354.42,0.00017703,2]
[320052041,1711117832125,-833.86,0.00017703,2]
[320052042,1711117832135,-499.99,0.00017787,2]
[320052044,1711117832144,-163.75471654,0.000178,2]
[320052046,1711117832154,-329.75107832,0.000178,2]
[320052050,1711117832163,-193.23973,0.00017808,2]
[320052052,1711117832172,-424.06686722,0.00017819,2]
[320052054,1711117832182,-2402.7803822,0.0001782,2]
[320052056,1711117832191,-498.36170346,0.00017828,2]
[320052057,1711117832201,-841.73343008,0.00017828,2]
[320052058,1711117832212,-548.19956647,0.00017829,2]
[320052059,1711117832222,-1000.0,0.00017829,2]
[320052061,1711117832234,-1000.0,0.00017829,2]
[320052062,1711117832245,-27310.90288115,0.0001783,2]
[320052065,1711117832260,-1259.03570238,0.0001783,2]
[320052078,1711117832483,-339.49342103,0.0001783,2]
[320052079,1711117832495,-4856.60515523,0.0001783,2]
[320052080,1711117832504,-277.10244708,0.00017899,2]
[320052081,1711117832513,-520.479,0.00017899,2]
[320052082,1711117832523,-1485.14889414,0.00017899,2]
[320052083,1711117832532,-224.99,0.00017899,2]
[320052084,1711117832542,-5591.37,0.00017899,2]
[320052085,1711117832551,-2203.38900356,0.00017899,2]
[320052086,1711117832710,-329.66712704,0.00017899,2]
[320052087,1711117832722,-3058.3138694,0.00017899,2]
[320052088,1711117832732,-3224.28722006,0.00017899,2]
[320052089,1711117832772,-993.79654298,0.00017899,2]
[320052090,1711117832783,-1373.28623696,0.00017899,2]
[320052091,1711117832792,-5591.37,0.00017899,2]
[320052092,1711117832802,-4635.46558072,0.00017899,2]
[320052115,1711117837824,-955.90441928,0.00017899,2]
[320052116,1711117837834,-1802.39812891,0.00017899,2]
[320052117,1711117837846,-2515.54,0.00017899,2]
[320052118,1711117837887,-304.303982,0.00017899,2]
[320052119,1711117837900,-969.12788909,0.00017899,2]
[320052120,1711117837909,-5591.37,0.00017899,2]
[320052121,1711117837919,-5591.37,0.00017899,2]
[320052122,1711117837929,-5591.37,0.00017899,2]
[320052123,1711117837940,-5591.37,0.00017899,2]
[320052124,1711117837949,-5591.37,0.00017899,2]
[320052125,1711117837959,-5591.37,0.00017899,2]
[320052126,1711117837969,-5591.37,0.00017899,2]
[320052127,1711117837978,-5591.37,0.00017899,2]
[320052128,1711117837988,-5591.37,0.00017899,2]
[320052129,1711117837997,-5591.37,0.00017899,2]
[320052130,1711117838007,-5591.37,0.00017899,2]
[320052131,1711117838016,-5591.37,0.00017899,2]
[320052132,1711117838026,-5591.37,0.00017899,2]
[320052133,1711117838036,-5591.37,0.00017899,2]
[320052134,1711117838045,-5591.37,0.00017899,2]
[320052135,1711117838055,-484.7475536,0.00017899,2]
[320052138,1711117838095,-3593.85428938,0.00017899,2]
[320052141,1711117838107,-1512.76815702,0.00017899,2]
[320052143,1711117838120,-214.82948227,0.00017899,2]
[320052148,1711117838161,-5376.54051773,0.00017899,2]
[320052150,1711117838170,-5591.48036701,0.00017899,2]
[320052152,1711117838180,-1428.18433282,0.000179,2]
[320052155,1711117838197,-682.32678144,0.000179,2]
[320052158,1711117838214,-17863.16813942,0.000179,2]
[320052160,1711117838229,-21692.80336891,0.000179,2]
[320052164,1711117838260,-348.17341803,0.000179,2]
[320052167,1711117838272,-307.67202744,0.000179,2]
[320052169,1711117838285,-17397.14716926,0.000179,2]
[320052171,1711117838298,-2413.57292706,0.000179,2]
[320052173,1711117838312,-1260.837,0.000179,2]
[320052188,1711117838448,-20806.45802846,0.000179,2]
[320052190,1711117838461,-412.61689262,0.000179,2]
[320052213,1711117838733,-160387.03991454,0.000179,2]
[320052215,1711117838743,-79585.82819658,0.000179,2]
[320052218,1711117838774,-6036.030232,0.000179,2]
[320052221,1711117838790,-636.75,0.000179,2]
[320052319,1711117839733,-2201.86986163,0.000179,2]
[320052355,1711117839874,-3150.7447,0.000179,2]
[320052359,1711117839886,-421.64999999,0.000179,2]
[320052366,1711117839899,-7967.1270098,0.000179,2]
[320052369,1711117839908,-1900.0,0.000179,6]
[320052373,1711117839917,-660.80400593,0.000179,2]
[320052377,1711117839927,-819.55601202,0.00017999,2]
[320052380,1711117839936,-184.13623079,0.00017999,2]
[320052384,1711117839946,-1078.94722166,0.00018,2]
[320052442,1711117840187,-0.24560046,0.00018,2]
[320052975,1711117842733,-486.27677538,0.00018,2]
[320052979,1711117842745,-2715.87504992,0.00018,2]
[320052983,1711117842757,-2920.08498444,0.00018,2]
[320052986,1711117842769,-737.04190416,0.00018,2]
[320052989,1711117842780,-2515.70534979,0.00018,2]
[320052994,1711117842792,-5525.45681726,0.00018,2]
[320052997,1711117842803,-817.67892191,0.00018,2]
[320053000,1711117842820,-4121.3717714,0.00018,2]
[320053039,1711117843010,-330.0772447,0.00018,2]
[320053060,1711117843131,-2047.84312439,0.00018,2]
[320053067,1711117843194,-53561.6099813,0.00018,2]
[320053068,1711117843204,-485265.61253025,0.00018,2]
[320053070,1711117843214,-962.36349289,0.00018,2]
[320053072,1711117843224,-1251.84359666,0.00018,2]
[320053074,1711117843236,-2000.0,0.00018,2]
[320053076,1711117843252,-200.0,0.00018,2]
[320053078,1711117843261,-1894.43240806,0.00018,2]
[320053080,1711117843270,-3020.76407,0.00018,2]
[320053082,1711117843281,-660.80400586,0.00018004,2]
[320053084,1711117843291,-1209.39744523,0.00018156,2]
[320053086,1711117843300,-2000.0,0.0001818,2]
[320053088,1711117843309,-660.80400586,0.0001821,2]
[320053090,1711117843318,-2000.0,0.00018362,2]
[320053091,1711117843327,-660.80400586,0.00018415,2]
[320053094,1711117843337,-2000.0,0.00018545,2]
[320053096,1711117843346,-200.0,0.00018558,2]
[320053098,1711117843355,-329.75107831,0.00018575,2]
[320053099,1711117843365,-660.80400586,0.0001862,2]
[320053102,1711117843379,-193.23973,0.0001863,2]
[320053104,1711117843388,-2000.0,0.00018731,2]
[320053105,1711117843400,-660.80400586,0.00018826,2]
[320053108,1711117843409,-3800.0,0.000189,6]
[320053110,1711117843418,-151.4,0.00019004,2]
[320053111,1711117843428,-660.80400586,0.00019031,2]
[320053113,1711117843437,-182.39,0.00019116,2]
[320053115,1711117843446,-208.24,0.00019159,2]
[320053117,1711117843456,-151.4,0.00019162,2]
[320053119,1711117843465,-639.64315388,0.00019178,2]
[320053121,1711117843474,-500.0,0.00019178,2]
[320053123,1711117843483,-325.73122628,0.00019178,2]
[320053125,1711117843493,-159.34,0.0001918,2]
[320053127,1711117843502,-159.34,0.0001918,2]
[320053129,1711117843511,-159.34,0.0001918,2]
[320053131,1711117843520,-159.34,0.0001918,2]
[320053133,1711117843529,-159.34,0.0001918,2]
[320053135,1711117843539,-3843.36723217,0.000192,2]
[320053137,1711117843548,-660.80400586,0.00019236,2]
[320053139,1711117843557,-1485.14889408,0.00019281,2]
[320053141,1711117843567,-151.4,0.00019321,2]
[320053143,1711117843576,-329.75107831,0.0001935,2]
[320053145,1711117843585,-660.80400586,0.00019442,2]
[320053147,1711117843594,-193.23973,0.00019452,2]
[320053149,1711117843603,-151.4,0.00019479,2]
[320053151,1711117843613,-800.0,0.00019578,2]
[320053153,1711117843624,-351.15,0.00019626,2]
[320053155,1711117843633,-151.4,0.00019638,2]
[320053157,1711117843643,-660.80400586,0.00019647,2]
[320053159,1711117843653,-151.4,0.00019796,2]
[320053161,1711117843663,-3487.0,0.000198,2]
[320053163,1711117843674,-713.0,0.000198,2]
[320053165,1711117843683,-660.80400586,0.00019852,2]
[320053167,1711117843693,-1324.44,0.00019875,2]
[320053169,1711117843702,-151.4,0.00019954,2]
[320053171,1711117843712,-590.61224363,0.0002,2]
[320053173,1711117843722,-172.64397972,0.0002,2]
[320053175,1711117843731,-286.93726099,0.0002,2]
[320053177,1711117843740,-1247.90893269,0.0002,2]
[320053179,1711117843750,-1755.61791887,0.0002,2]
[320053181,1711117843760,-5000.0,0.0002,2]
[320053183,1711117843769,-854.24216831,0.0002,2]
[320053185,1711117843779,-5146.55055849,0.0002,2]
[320053187,1711117843789,-1433.33132983,0.0002,2]
[320053189,1711117843798,-4035.34457833,0.0002005,2]
[320053191,1711117843808,-660.80400586,0.00020057,2]
[320053193,1711117843818,-329.75107831,0.00020125,2]
[320053195,1711117843827,-292.21,0.00020252,2]
[320053197,1711117843836,-660.80400586,0.00020263,2]
[320053199,1711117843845,-193.23973,0.00020274,2]
[320053201,1711117843855,-1000.0,0.00020455,2]
[320053203,1711117843865,-660.80400586,0.00020468,2]